fUSD/lending_fUSD_20240714
["ID","MTS","AMOUNT","RATE_DAILY","PERIOD"]
[332027891,1720938646470,-500.0,0.00013698,2]
[332027893,1720938646479,-500.0,0.00013698,2]
[332027895,1720938646489,-500.0,0.00013698,2]
[332027897,1720938646499,-500.0,0.00013698,2]
[332027900,1720938646508,-500.0,0.00013698,2]
[332027901,1720938646518,-500.0,0.00013698,2]
[332027902,1720938646528,-500.0,0.00013698,2]
[332027903,1720938646537,-500.0,0.00013698,2]
[332027904,1720938646546,-500.0,0.00013698,2]
[332027905,1720938646555,-500.0,0.00013698,2]
[332027906,1720938646565,-500.0,0.00013698,2]
[332027907,1720938646575,-500.0,0.00013698,2]
[332027909,1720938646584,-500.0,0.00013698,2]
[332027911,1720938646594,-500.0,0.00013698,2]
[332027913,1720938646604,-500.0,0.00013698,2]
[332027915,1720938646613,-500.0,0.00013698,2]
[332027917,1720938646622,-500.0,0.00013698,2]
[332027919,1720938646632,-500.0,0.00013698,2]
[332027921,1720938646641,-500.0,0.00013698,2]
[332027923,1720938646650,-500.0,0.00013698,2]
[332027925,1720938646661,-500.0,0.00013698,2]
[332027927,1720938646670,-500.0,0.00013698,2]
[332027929,1720938646680,-500.0,0.00013698,2]
[332027931,1720938646690,-500.0,0.00013698,2]
[332027933,1720938646699,-500.0,0.00013698,2]
[332027935,1720938646709,-500.0,0.00013698,2]
[332027937,1720938646718,-500.0,0.00013698,2]
[332027939,1720938646728,-500.0,0.00013698,2]
[332027941,1720938646737,-500.0,0.00013698,2]
[332027943,1720938646746,-513.12,0.00013698,2]
[332027945,1720938646755,-500.0,0.00013698,2]
[332027947,1720938646764,-500.0,0.00013698,2]
[332027949,1720938646774,-500.0,0.00013698,2]
[332027951,1720938646783,-500.0,0.00013698,2]
[332027953,1720938646792,-500.0,0.00013698,2]
[332027955,1720938646801,-500.0,0.00013698,2]
[332027957,1720938646810,-500.0,0.00013698,2]
[332027959,1720938646819,-500.0,0.00013698,2]
[332027961,1720938646829,-500.0,0.00013698,2]
[332027963,1720938646838,-500.0,0.00013698,2]
[332027965,1720938646850,-500.0,0.00013698,2]
[332027967,1720938646859,-576.8667459,0.00013698,2]
[332027969,1720938646868,-500.0,0.00013698,2]
[332027971,1720938646878,-500.0,0.00013698,2]
[332027973,1720938646889,-500.0,0.00013698,2]
[332027975,1720938646898,-500.0,0.00013698,2]
[332027977,1720938646908,-500.0,0.00013698,2]
[332027979,1720938646918,-500.0,0.00013698,2]
[332027981,1720938646928,-500.0,0.00013698,2]
[332027983,1720938646937,-500.0,0.00013698,2]
[332027985,1720938646947,-781.85,0.00013698,2]
[332027987,1720938646957,-500.0,0.00013698,2]
[332027989,1720938646967,-500.0,0.00013698,2]
[332027991,1720938646977,-500.0,0.00013698,2]
[332027993,1720938646986,-500.0,0.00013698,2]
[332027995,1720938646996,-500.0,0.00013698,2]
[332027997,1720938647005,-500.0,0.00013698,2]
[332027999,1720938647016,-500.0,0.00013698,2]
[332028001,1720938647027,-500.0,0.00013698,2]
[332028003,1720938647036,-802.03,0.00013698,2]
[332028005,1720938647046,-500.0,0.00013698,2]
[332028007,1720938647055,-500.0,0.00013698,2]
[332028009,1720938647065,-500.0,0.00013698,2]
[332028011,1720938647074,-500.0,0.00013698,2]
[332028013,1720938647083,-623.37082164,0.00013698,2]
[332028015,1720938647092,-507.73992308,0.00013698,2]
[332028017,1720938647102,-500.0,0.00013698,2]
[332028019,1720938647111,-500.0,0.00013698,2]
[332028021,1720938647121,-500.0,0.00013698,2]
[332028023,1720938647131,-500.0,0.00013698,2]
[332028025,1720938647142,-500.0,0.00013698,2]
[332028027,1720938647154,-500.0,0.00013698,2]
[332028029,1720938647165,-500.0,0.00013698,2]
[332028031,1720938647174,-506.61700462,0.00013698,2]
[332028033,1720938647183,-500.0,0.00013698,2]
[332028035,1720938647193,-500.0,0.00013698,2]
[332028037,1720938647202,-639.22,0.00013698,2]
[332028039,1720938647212,-500.0,0.00013698,2]
[332028041,1720938647222,-500.0,0.00013698,2]
[332028043,1720938647231,-500.0,0.00013698,2]
[332028045,1720938647241,-500.0,0.00013698,2]
[332028047,1720938647250,-500.0,0.00013698,2]
[332028049,1720938647260,-506.32,0.00013698,2]
[332028051,1720938647270,-500.0,0.00013698,2]
[332028053,1720938647280,-500.0,0.00013698,2]
[332028055,1720938647290,-500.0,0.00013698,2]
[332028057,1720938647299,-500.0,0.00013698,2]
[332028059,1720938647310,-653.07,0.00013698,2]
[332028061,1720938647320,-959.26,0.00013698,2]
[332028063,1720938647329,-500.0,0.00013698,2]
[332028065,1720938647339,-1007.33,0.00013698,2]
[332028067,1720938647348,-500.0,0.00013698,2]
[332028069,1720938647358,-1122.7,0.00013698,2]
[332028071,1720938647367,-500.0,0.00013698,2]
[332028073,1720938647376,-500.0,0.00013698,2]
[332028075,1720938647385,-500.0,0.00013698,2]
[332028077,1720938647395,-500.0,0.00013698,2]
[332028079,1720938647404,-500.0,0.00013698,2]
[332028081,1720938647414,-500.0,0.00013698,2]
[332028083,1720938647423,-500.0,0.00013698,2]
[332028085,1720938647433,-500.0,0.00013698,2]
[332028087,1720938647443,-500.0,0.00013698,2]
[332028089,1720938647452,-500.0,0.00013698,2]
[332028091,1720938647462,-500.0,0.00013698,2]
[332028093,1720938647471,-500.0,0.00013698,2]
[332028095,1720938647481,-500.0,0.00013698,2]
[332028097,1720938647491,-500.0,0.00013698,2]
[332028099,1720938647500,-500.0,0.00013698,2]
[332028101,1720938647509,-1038.98353633,0.00013698,2]
[332028103,1720938647519,-500.0,0.00013698,2]
[332028105,1720938647528,-621.7,0.00013698,2]
[332028107,1720938647538,-205.04300151,0.00013698,2]
[332028109,1720938647547,-163.11478364,0.00013698,2]
[332028180,1720938648302,-336.88521636,0.00013698,2]
[332028183,1720938648312,-500.0,0.00013698,2]
[332028184,1720938648322,-532.76,0.00013698,2]
[332028186,1720938648331,-500.0,0.00013698,2]
[332028188,1720938648341,-500.0,0.00013698,2]
[332028190,1720938648350,-500.0,0.00013698,2]
[332028192,1720938648359,-500.0,0.00013698,2]
[332028194,1720938648369,-500.0,0.00013698,2]
[332028196,1720938648379,-500.0,0.00013698,2]
[332028198,1720938648388,-500.0,0.00013698,2]
[332028200,1720938648398,-500.0,0.00013698,2]
[332028202,1720938648407,-555.9,0.00013698,2]
[332028204,1720938648417,-500.0,0.00013698,2]
[332028206,1720938648426,-500.0,0.00013698,2]
[332028208,1720938648436,-711.66,0.00013698,2]
[332028210,1720938648445,-500.0,0.00013698,2]
[332028212,1720938648455,-500.0,0.00013698,2]
[332028214,1720938648464,-500.0,0.00013698,2]
[332028216,1720938648473,-500.0,0.00013698,2]
[332028218,1720938648484,-500.0,0.00013698,2]
[332028220,1720938648493,-500.0,0.00013698,2]
[332028222,1720938648502,-500.0,0.00013698,2]
[332028224,1720938648512,-619.29,0.00013698,2]
[332028226,1720938648521,-500.0,0.00013698,2]
[332028228,1720938648530,-500.0,0.00013698,2]
[332028230,1720938648539,-500.0,0.00013698,2]
[332028232,1720938648549,-500.0,0.00013698,2]
[332028234,1720938648558,-500.0,0.00013698,2]
[332028236,1720938648568,-500.0,0.00013698,2]
[332028238,1720938648577,-500.0,0.00013698,2]
[332028240,1720938648586,-500.0,0.00013698,2]
[332028242,1720938648596,-500.0,0.00013698,2]
[332028244,1720938648606,-500.0,0.00013698,2]
[332028246,1720938648615,-500.0,0.00013698,2]
[332028248,1720938648624,-500.0,0.00013698,2]
[332028250,1720938648634,-500.0,0.00013698,2]
[332028252,1720938648643,-500.0,0.00013698,2]
[332028254,1720938648652,-500.0,0.00013698,2]
[332028256,1720938648662,-500.0,0.00013698,2]
[332028258,1720938648671,-500.0,0.00013698,2]
[332028260,1720938648681,-500.0,0.00013698,2]
[332028262,1720938648690,-500.0,0.00013698,2]
[332028264,1720938648700,-500.0,0.00013698,2]
[332028266,1720938648709,-500.0,0.00013698,2]
[332028268,1720938648718,-500.0,0.00013698,2]
[332028270,1720938648727,-500.0,0.00013698,2]
[332028272,1720938648736,-500.0,0.00013698,2]
[332028274,1720938648748,-500.0,0.00013698,2]
[332028276,1720938648757,-526.2,0.00013698,2]
[332028278,1720938648767,-500.0,0.00013698,2]
[332028280,1720938648776,-500.0,0.00013698,2]
[332028282,1720938648786,-500.0,0.00013698,2]
[332028284,1720938648795,-500.0,0.00013698,2]
[332028286,1720938648804,-500.0,0.00013698,2]
[332028288,1720938648813,-500.0,0.00013698,2]
[332028290,1720938648822,-507.51732386,0.00013698,2]
[332028292,1720938648833,-500.0,0.00013698,2]
[332028294,1720938648849,-500.0,0.00013698,2]
[332028296,1720938648859,-500.0,0.00013698,2]
[332028298,1720938648868,-209.27789979,0.00013698,2]
[332028303,1720938648963,-265.54393426,0.00013698,2]
[332028305,1720938648974,-25.17816595,0.00013698,2]
[332028307,1720938648983,-500.0,0.00013698,2]
[332028309,1720938648993,-500.0,0.00013698,2]
[332028311,1720938649003,-500.0,0.00013698,2]
[332028313,1720938649012,-745.38,0.00013698,2]
[332028315,1720938649021,-500.0,0.00013698,2]
[332028317,1720938649031,-321.65011853,0.00013698,2]
[332028352,1720938649359,-178.34988147,0.00013698,2]
[332028354,1720938649370,-186.33526371,0.00013698,2]
[332028356,1720938649379,-500.0,0.00013698,2]
[332028358,1720938649388,-500.0,0.00013698,2]
[332028360,1720938649398,-500.0,0.00013698,2]
[332028362,1720938649407,-500.0,0.00013698,2]
[332028364,1720938649418,-500.0,0.00013698,2]
[332028366,1720938649427,-500.0,0.00013698,2]
[332028368,1720938649437,-542.31,0.00013698,2]
[332028370,1720938649447,-500.0,0.00013698,2]
[332028372,1720938649456,-500.0,0.00013698,2]
[332028374,1720938649466,-500.0,0.00013698,2]
[332028376,1720938649475,-500.0,0.00013698,2]
[332028378,1720938649484,-500.0,0.00013698,2]
[332028380,1720938649494,-500.0,0.00013698,2]
[332028382,1720938649503,-500.0,0.00013698,2]
[332028384,1720938649513,-500.0,0.00013698,2]
[332028386,1720938649522,-500.0,0.00013698,2]
[332028388,1720938649531,-324.96330482,0.00013698,2]
[332029402,1720938831029,8799.0,9e-05,2]
[332029405,1720939300328,2000.0,0.00025,60]
[332029406,1720939389512,2000.0,0.00025,60]
[332029409,1720939437673,1215.0,0.00025,60]
[332029415,1720939629305,360.840802,9.999e-05,2]
[332029416,1720939679376,155.0,9.999e-05,2]
[332029417,1720939681998,449.95028821,9.999e-05,2]
[332029418,1720939695077,7561.37153725,9.999e-05,2]
[332029419,1720939698597,1472.83737254,9.999e-05,2]
[332029420,1720939698621,10000.0,9.999e-05,2]
[332029421,1720939698646,8872.17424846,9.999e-05,2]
[332029441,1720939778065,1127.82575154,9.999e-05,2]
[332029442,1720939778086,1605.09278241,9.999e-05,2]
[332029443,1720939797056,155.13759145,9.999e-05,2]
[332029446,1720939812491,376.55892508,9.999e-05,2]
[332029459,1720939831680,-300.0,0.00010049,2]
[332029460,1720939831691,-1616.80238943,0.0001005,2]
[332029461,1720939831701,-1506.26770272,0.0001005,2]
[332029462,1720939831712,-706.07482364,0.0001005,2]
[332029463,1720939831970,-8855.36416625,0.0001005,2]
[332029464,1720939831979,-469.31,0.0001015,2]
[332029465,1720939831989,-155.05946444,0.00010809,2]
[332029466,1720939831998,-296.17772441,0.00010909,2]
[332029467,1720939832007,-155.3916334,0.00010909,2]
[332029468,1720939832016,-652.52,0.00010959,2]
[332029469,1720939832025,-150.0,0.00010986,2]
[332029470,1720939832034,-500.0,0.00011012,2]
[332029471,1720939832043,-500.0,0.00011012,2]
[332029472,1720939832052,-500.0,0.00011012,2]
[332029473,1720939832062,-500.0,0.00011012,2]
[332029474,1720939832071,-5000.0,0.00011097,2]
[332029475,1720939832080,-2142.4852451,0.00011098,2]
[332029476,1720939832089,-738.22713746,0.00011098,2]
[332029478,1720939832098,-267.45812738,0.00011098,2]
[332029480,1720939832107,-155.3025898,0.00011098,2]
[332029481,1720939832116,-155.0,0.00011098,2]
[332029482,1720939832125,-476.63847977,0.00011098,2]
[332029483,1720939832134,-213.75697136,0.00011098,2]
[332029484,1720939832143,-1500.0,0.00011098,2]
[332029485,1720939832152,-557.91,0.00011098,2]
[332029486,1720939832161,-499.99,0.00011098,2]
[332029487,1720939832170,-12586.84689774,0.00011199,2]
[332029488,1720939832179,-642.12,0.00011363,2]
[332029489,1720939832188,-200.0,0.0001164,2]
[332029490,1720939832198,-19804.15,0.00011888,2]
[332029491,1720939832208,-500.0,0.00011992,2]
[332029492,1720939832219,-360.0,0.00012043,2]
[332029493,1720939832228,-745.16,0.00012058,2]
[332029494,1720939832236,-1003.91,0.00012078,2]
[332029495,1720939832246,-250.0,0.00012078,2]
[332029496,1720939832256,-250.0,0.00012109,2]
[332029497,1720939832265,-821.48231335,0.0001212,2]
[332029498,1720939832274,-170.8,0.00012131,2]
[332029499,1720939832283,-167.46,0.00012138,2]
[332029500,1720939832295,-10000.0,0.00012261,2]
[332029501,1720939832304,-640.0,0.00012306,2]
[332029502,1720939832314,-150.0,0.00012403,2]
[332029503,1720939832323,-469.31,0.00012414,2]
[332029504,1720939832332,-150.0,0.00012575,2]
[332029505,1720939832341,-55319.2917946,0.0001264,2]
[332029506,1720939832352,-4121.07153573,0.0001264,2]
[332029507,1720939832363,-23332.16127814,0.0001264,2]
[332029508,1720939832374,-10916.93811078,0.0001264,2]
[332029509,1720939832384,-12182.78132822,0.0001264,2]
[332029510,1720939832395,-19558.75595253,0.0001264,2]
[332029511,1720939832404,-150.0,0.00012747,2]
[332029512,1720939832413,-174.03,0.00012748,2]
[332029513,1720939832422,-150.0,0.0001292,2]
[332029514,1720939832431,-252.75,0.00013,2]
[332029515,1720939832440,-855.16,0.00013041,2]
[332029516,1720939832449,-880.54,0.00013041,2]
[332029517,1720939832458,-150.0,0.00013092,2]
[332029518,1720939832466,-150.0,0.00013178,2]
[332029519,1720939832475,-427.6,0.00013178,2]
[332029520,1720939832484,-150.0,0.00013178,2]
[332029521,1720939832493,-300.0,0.00013178,2]
[332029522,1720939832502,-355.33,0.00013178,2]
[332029523,1720939832511,-150.0,0.00013178,2]
[332029524,1720939832521,-424.94,0.00013178,2]
[332029525,1720939832530,-165.09,0.00013178,2]
[332029526,1720939832539,-355.33,0.00013178,2]
[332029527,1720939832548,-150.0,0.00013178,2]
[332029528,1720939832558,-424.94,0.00013178,2]
[332029529,1720939832567,-150.0,0.00013178,2]
[332029530,1720939832576,-150.0,0.00013178,2]
[332029531,1720939832585,-165.09,0.00013178,2]
[332029532,1720939832594,-354.11,0.00013178,2]
[332029533,1720939832603,-162.92,0.00013178,2]
[332029534,1720939832612,-150.0,0.00013178,2]
[332029535,1720939832622,-529.19,0.00013178,2]
[332029536,1720939832631,-165.09,0.00013178,2]
[332029537,1720939832640,-424.94,0.00013178,2]
[332029538,1720939832649,-300.0,0.00013178,2]
[332029539,1720939832658,-229.044626,0.00013199,2]
[332029540,1720939832668,-183.608263,0.00013199,2]
[332029541,1720939832677,-183.113198,0.00013199,2]
[332029542,1720939832687,-165.539992,0.00013199,2]
[332029543,1720939832696,-189.291138,0.00013199,2]
[332029544,1720939832706,-273.286824,0.00013199,2]
[332029545,1720939832715,-273.286824,0.00013199,2]
[332029546,1720939832724,-183.608264,0.00013199,2]
[332029547,1720939832733,-183.113198,0.00013199,2]
[332029548,1720939832742,-273.286825,0.00013199,2]
[332029549,1720939832751,-183.608263,0.00013199,2]
[332029550,1720939832760,-183.113198,0.00013199,2]
[332029551,1720939832769,-5587.7852,0.00013231,2]
[332029552,1720939832779,-252.38,0.00013242,2]
[332029553,1720939832787,-1466.212,0.00013242,2]
[332029554,1720939832796,-150.488,0.00013242,2]
[332029555,1720939832805,-150.0,0.00013264,2]
[332029556,1720939832815,-183.113198,0.00013364,2]
[332029557,1720939832824,-273.286824,0.00013364,2]
[332029558,1720939832833,-273.286824,0.00013364,2]
[332029559,1720939832842,-183.113198,0.00013364,2]
[332029560,1720939832852,-273.286825,0.00013364,2]
[332029561,1720939832861,-183.113198,0.00013364,2]
[332029562,1720939832870,-183.608263,0.00013419,2]
[332029563,1720939832879,-183.608264,0.00013419,2]
[332029564,1720939832888,-183.608263,0.00013419,2]
[332029565,1720939832898,-150.0,0.00013436,2]
[332029566,1720939832908,-777.10161845,0.00013499,2]
[332029567,1720939832917,-1000.0,0.00013499,2]
[332029568,1720939832926,-2423.41,0.000135,2]
[332029569,1720939832936,-299.27335261,0.00013516,2]
[332029570,1720939832945,-183.113198,0.00013529,2]
[332029571,1720939832955,-273.286824,0.00013529,2]
[332029572,1720939832965,-273.286824,0.00013529,2]
[332029573,1720939832974,-183.113198,0.00013529,2]
[332029574,1720939832983,-273.286825,0.00013529,2]
[332029575,1720939832992,-183.113198,0.00013529,2]
[332029576,1720939833002,-3000.0,0.0001353,2]
[332029577,1720939833011,-3000.0,0.0001354,2]
[332029578,1720939833021,-360.0,0.00013548,2]
[332029579,1720939833030,-219.88,0.00013589,2]
[332029580,1720939833040,-323.86948513,0.00013598,2]
[332029581,1720939833049,-1000.0,0.00013598,2]
[332029582,1720939833059,-167.05516024,0.00013599,2]
[332029583,1720939833068,-389.44402368,0.000136,2]
[332029584,1720939833078,-150.0,0.00013609,2]
[332029585,1720939833087,-183.608263,0.00013639,2]
[332029586,1720939833097,-183.608264,0.00013639,2]
[332029587,1720939833106,-183.608263,0.00013639,2]
[332029588,1720939833116,-376.6028796,0.00013688,2]
[332029589,1720939833125,-183.113198,0.00013694,2]
[332029590,1720939833134,-273.286824,0.00013694,2]
[332029591,1720939833144,-273.286824,0.00013694,2]
[332029592,1720939833153,-183.113198,0.00013694,2]
[332029593,1720939833163,-273.286825,0.00013694,2]
[332029594,1720939833172,-183.113198,0.00013694,2]
[332029595,1720939833182,-500.0,0.00013698,2]
[332029596,1720939833192,-500.0,0.00013698,2]
[332029597,1720939833202,-500.0,0.00013698,2]
[332029598,1720939833214,-500.0,0.00013698,2]
[332029599,1720939833225,-500.0,0.00013698,2]
[332029600,1720939833235,-500.0,0.00013698,2]
[332029601,1720939833244,-500.0,0.00013698,2]
[332029602,1720939833255,-500.0,0.00013698,2]
[332029603,1720939833265,-500.0,0.00013698,2]
[332029604,1720939833275,-500.0,0.00013698,2]
[332029605,1720939833285,-500.0,0.00013698,2]
[332029606,1720939833295,-500.0,0.00013698,2]
[332029607,1720939833305,-500.0,0.00013698,2]
[332029608,1720939833314,-500.0,0.00013698,2]
[332029609,1720939833323,-555.91577785,0.00013698,2]
[332029610,1720939833333,-500.0,0.00013698,2]
[332029611,1720939833343,-500.0,0.00013698,2]
[332029612,1720939833353,-500.0,0.00013698,2]
[332029613,1720939833362,-500.0,0.00013698,2]
[332029614,1720939833372,-500.0,0.00013698,2]
[332029615,1720939833382,-500.0,0.00013698,2]
[332029616,1720939833392,-500.0,0.00013698,2]
[332029617,1720939833401,-200.0,0.00013698,2]
[332029618,1720939833411,-500.0,0.00013698,2]
[332029619,1720939833420,-500.0,0.00013698,2]
[332029620,1720939833429,-229.59187425,0.00013698,2]
[332029621,1720939833437,-500.0,0.00013698,2]
[332029622,1720939833707,-500.0,0.00013698,2]
[332029623,1720939833720,-500.0,0.00013698,2]
[332029624,1720939833729,-500.0,0.00013698,2]
[332029625,1720939833739,-500.0,0.00013698,2]
[332029626,1720939833748,-328.41051261,0.00013698,2]
[332029627,1720939833758,-500.0,0.00013698,2]
[332029628,1720939833768,-500.0,0.00013698,2]
[332029629,1720939833777,-500.0,0.00013698,2]
[332029630,1720939833787,-500.0,0.00013698,2]
[332029631,1720939833796,-500.0,0.00013698,2]
[332029632,1720939833806,-500.0,0.00013698,2]
[332029633,1720939833816,-500.0,0.00013698,2]
[332029634,1720939833825,-500.0,0.00013698,2]
[332029635,1720939833834,-2000.0,0.00013698,2]
[332029636,1720939833844,-568.14154876,0.00013698,2]
[332029637,1720939833854,-200.0,0.00013698,2]
[332029638,1720939833863,-500.0,0.00013698,2]
[332029639,1720939833873,-500.0,0.00013698,2]
[332029640,1720939833883,-500.0,0.00013698,2]
[332029641,1720939833892,-500.0,0.00013698,2]
[332029642,1720939833902,-500.0,0.00013698,2]
[332029643,1720939833911,-500.0,0.00013698,2]
[332029644,1720939833921,-500.0,0.00013698,2]
[332029645,1720939833930,-500.0,0.00013698,2]
[332029646,1720939833941,-500.0,0.00013698,2]
[332029647,1720939833951,-500.0,0.00013698,2]
[332029648,1720939833960,-500.0,0.00013698,2]
[332029649,1720939833970,-500.0,0.00013698,2]
[332029650,1720939833979,-500.0,0.00013698,2]
[332029651,1720939833990,-500.0,0.00013698,2]
[332029652,1720939833999,-500.0,0.00013698,2]
[332029653,1720939834008,-500.0,0.00013698,2]
[332029654,1720939834018,-500.0,0.00013698,2]
[332029655,1720939834027,-500.0,0.00013698,2]
[332029656,1720939834037,-500.0,0.00013698,2]
[332029657,1720939834046,-500.0,0.00013698,2]
[332029658,1720939834055,-56.85241372,0.00013698,2]
[332029659,1720939834094,-443.14758628,0.00013698,2]
[332029660,1720939834103,-500.0,0.00013698,2]
[332029661,1720939834113,-500.0,0.00013698,2]
[332029662,1720939834123,-151.0,0.00013698,2]
[332029663,1720939834133,-500.0,0.00013698,2]
[332029664,1720939834143,-538.19,0.00013698,2]
[332029665,1720939834153,-500.0,0.00013698,2]
[332029666,1720939834163,-500.0,0.00013698,2]
[332029667,1720939834173,-500.0,0.00013698,2]
[332029668,1720939834182,-500.0,0.00013698,2]
[332029669,1720939834192,-153.27595493,0.00013698,2]
[332029670,1720939834202,-500.0,0.00013698,2]
[332029671,1720939834214,-151.0,0.00013698,2]
[332029672,1720939834225,-151.0,0.00013698,2]
[332029673,1720939834235,-500.0,0.00013698,2]
[332029674,1720939834245,-500.0,0.00013698,2]
[332029675,1720939834255,-500.0,0.00013698,2]
[332029676,1720939834264,-500.0,0.00013698,2]
[332029677,1720939834274,-500.0,0.00013698,2]
[332029678,1720939834284,-500.0,0.00013698,2]
[332029679,1720939834295,-500.0,0.00013698,2]
[332029680,1720939834305,-500.0,0.00013698,2]
[332029681,1720939834314,-500.0,0.00013698,2]
[332029682,1720939834323,-500.0,0.00013698,2]
[332029683,1720939834332,-500.0,0.00013698,2]
[332029684,1720939834342,-500.0,0.00013698,2]
[332029685,1720939834351,-500.0,0.00013698,2]
[332029686,1720939834361,-500.0,0.00013698,2]
[332029687,1720939834370,-500.0,0.00013698,2]
[332029688,1720939834380,-500.0,0.00013698,2]
[332029689,1720939834390,-500.0,0.00013698,2]
[332029690,1720939834399,-330.68798305,0.00013698,2]
[332029691,1720939834415,-169.31201695,0.00013698,2]
[332029692,1720939834424,-500.0,0.00013698,2]
[332029693,1720939834434,-192.03394236,0.00013698,2]
[332029694,1720939834444,-500.0,0.00013698,2]
[332029695,1720939834455,-500.0,0.00013698,2]
[332029696,1720939834464,-500.0,0.00013698,2]
[332029697,1720939834475,-500.0,0.00013698,2]
[332029698,1720939834484,-500.0,0.00013698,2]
[332029699,1720939834494,-500.0,0.00013698,2]
[332029700,1720939834503,-500.0,0.00013698,2]
[332029701,1720939834513,-500.0,0.00013698,2]
[332029702,1720939834523,-500.0,0.00013698,2]
[332029703,1720939834533,-47.94190364,0.00013698,2]
[332029704,1720939834546,-452.05809636,0.00013698,2]
[332029705,1720939834556,-500.0,0.00013698,2]
[332029706,1720939834565,-500.0,0.00013698,2]
[332029707,1720939834575,-395.8230362,0.00013698,2]
[332029708,1720939834584,-332.9083745,0.00013698,2]
[332029709,1720939834594,-500.0,0.00013698,2]
[332029710,1720939834603,-500.0,0.00013698,2]
[332029711,1720939834613,-500.0,0.00013698,2]
[332029712,1720939834622,-500.0,0.00013698,2]
[332029713,1720939834632,-500.0,0.00013698,2]
[332029714,1720939834642,-500.0,0.00013698,2]
[332029715,1720939834651,-500.0,0.00013698,2]
[332029716,1720939834661,-500.0,0.00013698,2]
[332029717,1720939834671,-500.0,0.00013698,2]
[332029718,1720939834682,-500.0,0.00013698,2]
[332029719,1720939834691,-500.0,0.00013698,2]
[332029720,1720939834701,-500.0,0.00013698,2]
[332029721,1720939834710,-500.0,0.00013698,2]
[332029722,1720939834720,-500.0,0.00013698,2]
[332029723,1720939834729,-500.0,0.00013698,2]
[332029724,1720939834739,-151.0,0.00013698,2]
[332029725,1720939834749,-246.27232582,0.00013698,2]
[332029726,1720939834763,-253.72767418,0.00013698,2]
[332029727,1720939834772,-500.0,0.00013698,2]
[332029728,1720939834782,-379.43362519,0.00013698,2]
[332029729,1720939834793,-120.56637481,0.00013698,2]
[332029730,1720939834803,-151.0,0.00013698,2]
[332029731,1720939834812,-500.0,0.00013698,2]
[332029732,1720939834821,-151.0,0.00013698,2]
[332029733,1720939834830,-258.85830763,0.00013698,2]
[332029734,1720939834842,-241.14169237,0.00013698,2]
[332029735,1720939834851,-500.0,0.00013698,2]
[332029736,1720939834860,-362.41544238,0.00013698,2]
[332029737,1720939834872,-137.58455762,0.00013698,2]
[332029738,1720939834882,-380.81565465,0.00013698,2]
[332029739,1720939834893,-119.18434535,0.00013698,2]
[332029740,1720939834903,-500.0,0.00013698,2]
[332029741,1720939834912,-500.0,0.00013698,2]
[332029742,1720939834922,-500.0,0.00013698,2]
[332029743,1720939834931,-500.0,0.00013698,2]
[332029744,1720939834940,-247.63993504,0.00013698,2]
[332029745,1720939834953,-252.36006496,0.00013698,2]